bitfinex-derivatives/quotes_SOLF0:USTF0_20260222
["timestamp","ask_amount","ask_price","bid_price","bid_amount"]
[1771797539968,3.86818021,83.469,83.435,471.95053818]
[1771797541772,3.86818021,83.469,83.436,2.87783431]
[1771797604603,3.86818021,83.469,83.423,2.72884824]
[1771797605013,2.57315438,83.46,83.423,2.72884824]
[1771797605213,3.87870475,83.459,83.423,2.72884824]
[1771797615815,4.03541599,83.475,83.44,5.2080206]
[1771797616021,4.03541599,83.475,83.441,2.63486622]
[1771797629835,4.03541599,83.475,83.442,10.7901]
[1771797630037,3.71947699,83.499,83.461,2.5989987]
[1771797655960,3.71947699,83.499,83.407,29.68133601]
[1771797655961,3.77511678,83.511,83.481,2.56861574]
[1771797661266,3.77511678,83.52,83.481,2.56861574]
[1771797663466,3.77511678,83.546,83.501,2.56141162]
[1771797669667,3.77511678,83.546,83.503,2.62032922]
[1771797672673,3.77511678,83.546,83.511,2.62107634]
[1771797674568,3.77511678,83.546,83.52,5.19831966]
[1771797674773,3.76034951,83.555,83.521,2.62682052]
[1771797677581,2.57149914,83.55,83.506,2.61684119]
[1771797677781,3.89954475,83.549,83.506,2.61684119]
[1771797681776,3.89954475,83.549,83.51,2.49613497]
[1771797682878,3.89954475,83.549,83.512,2.49613497]
[1771797687390,3.89954475,83.563,83.52,2.57149914]
[1771797687690,3.89954475,83.563,83.521,2.6135936]
[1771797688686,3.89954475,83.563,83.521,13.3934936]
[1771797688887,3.89954475,83.549,83.477,2.62316535]
[1771797689087,3.89954475,83.549,83.501,2.62316535]
[1771797690282,3.89954475,83.539,83.508,10.7816]
[1771797691591,3.89954475,83.539,83.508,13.30565385]
[1771797695295,3.89954475,83.549,83.509,2.52666995]
[1771797695590,3.89954475,83.549,83.511,2.52666995]
[1771797698292,3.89954475,83.549,83.5,13.35419914]
[1771797698592,3.70853937,83.539,83.493,2.53352453]
[1771797698790,3.70853937,83.539,83.486,10.7844]
[1771797698994,3.70853937,83.539,83.487,2.53357289]
[1771797699393,3.70853937,83.539,83.492,10.7837]
[1771797700188,3.70853937,83.539,83.492,13.31727289]
[1771797700389,3.70853937,83.539,83.495,2.53357289]
[1771797701796,3.70853937,83.539,83.497,2.53629486]
[1771797703987,3.70853937,83.539,83.5,2.57149914]
[1771797707095,3.70853937,83.539,83.501,2.59367861]
[1771797708989,3.70853937,83.539,83.503,2.59349814]
[1771797709393,3.70853937,83.539,83.511,2.59349814]
[1771797712597,3.70853937,83.555,83.511,2.59349814]
[1771797714100,3.70853937,83.552,83.511,2.59349814]
[1771797715701,3.70853937,83.55,83.511,2.59349814]
[1771797718401,3.70853937,83.539,83.494,2.59738842]
[1771797718594,3.70853937,83.529,83.483,2.59738842]
[1771797721804,3.70853937,83.519,83.483,2.59738842]
[1771797723007,3.70853937,83.519,83.472,2.60192092]
[1771797724300,3.70853937,83.509,83.472,2.60192092]
[1771797724696,2.56800659,83.52,83.475,2.60192092]
[1771797724895,6.27654596,83.52,83.475,2.60192092]
[1771797725096,3.70853937,83.519,83.475,2.60192092]
[1771797728307,3.70853937,83.519,83.48,2.56800659]
[1771797730511,3.70853937,83.519,83.475,2.60192092]
[1771797744419,3.90758866,83.518,83.465,10.7872]
[1771797744919,3.90758866,83.518,83.471,10.7864]
[1771797747427,3.90758866,83.518,83.471,13.48222712]
[1771797752231,3.90758866,83.518,83.476,2.71804643]
[1771797766039,3.90137975,83.509,83.467,2.70753328]
[1771797772442,3.90137975,83.518,83.471,2.7809591]
[1771797775642,3.90137975,83.513,83.471,2.7809591]
[1771797778541,2.57023833,83.51,83.456,10.7883]
[1771797778741,2.57023833,83.51,83.461,2.75096701]
[1771797778742,3.90137975,83.509,83.461,2.75096701]
[1771797779640,10.7819,83.506,83.461,2.75096701]
[1771797779946,3.90137975,83.505,83.461,2.75096701]
[1771797783048,3.90137975,83.503,83.461,2.75096701]
[1771797783643,3.90137975,83.503,83.45,22.26100201]
[1771797783644,3.90137975,83.497,83.451,2.53782644]
[1771797783844,3.90137975,83.489,83.451,2.53782644]
[1771797800257,3.94488532,83.479,83.434,22.26100201]
[1771797800461,3.94488532,83.479,83.426,2.57701716]
[1771797801563,3.94488532,83.469,83.426,2.57701716]
[1771797804663,3.94488532,83.469,83.43,2.57023833]
[1771797813568,3.94488532,83.469,83.414,10.7938]
[1771797813569,3.94488532,83.469,83.431,2.58316612]
[1771797813771,3.94488532,83.489,83.46,2.57023833]
[1771797816681,10.7844,83.488,83.46,2.57023833]
[1771797816980,14.72928532,83.488,83.46,2.57023833]
[1771797817180,3.94488532,83.487,83.46,2.57023833]
[1771797818376,10.7846,83.486,83.46,2.57023833]
[1771797819281,3.94488532,83.487,83.46,2.57023833]
[1771797819476,3.94488532,83.487,83.451,2.58316612]
[1771797820374,3.94488532,83.487,83.46,2.57023833]
[1771797822876,3.94488532,83.487,83.451,2.58316612]
[1771797831886,3.77782524,83.486,83.446,2.57391444]
[1771797834393,3.77782524,83.486,83.44,2.57236653]
[1771797835891,3.77782524,83.486,83.44,5.1456543]
[1771797840494,3.77782524,83.486,83.441,2.57886244]
[1771797841198,3.77782524,83.469,83.425,10.7924]
[1771797841698,3.77782524,83.469,83.426,2.57858187]
[1771797844199,3.77782524,83.469,83.43,2.57236653]
[1771797845499,3.77782524,83.469,83.43,5.12598504]
[1771797848498,3.83743415,83.465,83.418,2.56104386]
[1771797848702,3.83743415,83.465,83.42,5.13341039]
[1771797849001,3.83743415,83.465,83.421,2.56104386]
[1771797861410,4.04258079,83.461,83.411,2.56473356]
[1771797862000,4.04258079,83.461,83.42,2.57236653]
[1771797862403,4.04258079,83.461,83.43,5.13710009]
[1771797862605,4.04258079,83.461,83.431,2.56473356]
[1771797874817,4.04258079,83.497,83.451,2.61332352]
[1771797875121,4.04258079,83.497,83.46,2.57236653]
[1771797875518,4.04258079,83.492,83.46,2.57236653]
[1771797875820,4.04258079,83.492,83.46,5.18555546]
[1771797876616,4.04258079,83.492,83.46,2.61318893]
[1771797877815,4.04258079,83.492,83.446,10.7896]
[1771797877816,4.04258079,83.492,83.451,2.5603824]
[1771797879217,3.90154154,83.489,83.442,2.53608401]
[1771797879522,3.90154154,83.479,83.442,2.53608401]
[1771797881224,3.90154154,83.479,83.431,2.47709793]
[1771797882725,3.90154154,83.476,83.431,2.47709793]
[1771797883528,3.90154154,83.469,83.431,2.47709793]
[1771797924757,3.71733552,83.481,83.431,2.47709793]
[1771797924959,3.71733552,83.492,83.451,2.38867844]
[1771797926756,3.71733552,83.49,83.451,2.38867844]
[1771797935670,3.71733552,83.481,83.438,2.36565577]
[1771797935972,3.71733552,83.479,83.441,2.36565577]
[1771797936771,3.71733552,83.477,83.441,2.36565577]
[1771797941164,3.75422493,83.499,83.451,2.07767647]
[1771797941364,3.75422493,83.497,83.451,2.07767647]
[1771797942665,3.75422493,83.495,83.451,2.07767647]
[1771797943675,10.7836,83.494,83.451,2.07767647]
[1771797943871,3.75422493,83.493,83.451,2.07767647]
[1771797963194,2.57195416,83.49,83.451,2.07767647]
[1771797963394,3.75422493,83.489,83.451,2.07767647]
[1771797969308,3.77568187,83.487,83.451,2.07767647]
[1771797973109,3.77568187,83.487,83.443,2.43781041]
[1771798000222,3.87690078,83.485,83.443,2.43781041]
[1771798001328,3.87690078,83.469,83.433,10.7913]
[1771798001625,3.87690078,83.469,83.424,2.46043005]
[1771798001820,3.87690078,83.469,83.424,13.25283005]
[1771798007523,3.87690078,83.469,83.424,2.46043005]
[1771798009629,3.87690078,83.459,83.424,2.46043005]
[1771798010928,3.87690078,83.459,83.415,10.7936]
[1771798011131,3.87690078,83.449,83.404,2.39877052]
[1771798011430,3.87690078,83.439,83.391,2.39877052]
[1771798014125,3.87690078,83.429,83.391,2.39877052]
[1771798017135,3.87690078,83.429,83.38,2.57563991]
[1771798017931,3.87690078,83.429,83.376,2.55019781]
[1771798019835,3.87690078,83.419,83.376,2.55019781]
[1771798020133,3.87690078,83.419,83.37,218.7556994]
[1771798020134,3.87690078,83.419,83.37,2.57563991]
[1771798020735,3.87690078,83.419,83.369,10.7996]
[1771798021425,3.87690078,83.417,83.366,2.54730532]
[1771798021737,3.87690078,83.417,83.371,2.5908182]
[1771798023931,10.7936,83.416,83.371,2.5908182]
[1771798024136,3.87690078,83.415,83.371,2.5908182]
[1771798025338,3.87690078,83.413,83.371,2.5908182]
[1771798026738,3.87690078,83.41,83.371,2.5908182]
[1771798027838,14.67000078,83.42,83.39,5.09135426]
[1771798029943,3.85920457,83.419,83.39,5.09135426]
[1771798031943,14.65260457,83.418,83.39,2.51571435]
[1771798032145,3.85920457,83.417,83.39,2.57563991]
[1771798032344,3.85920457,83.417,83.381,2.4965644]
[1771798045859,3.97043424,83.431,83.391,2.35612632]
[1771798054666,3.97043424,83.429,83.391,2.35612632]
[1771798099700,3.95247165,83.419,83.382,2.38607583]
[1771798100000,3.95247165,83.409,83.381,10.798]
[1771798105805,3.95247165,83.409,83.381,12.98783896]
[1771798106001,3.95247165,83.409,83.382,2.18983896]
[1771798123520,3.98197514,83.434,83.386,2.28980219]
[1771798123720,3.98197514,83.429,83.386,2.28980219]
[1771798124815,3.98197514,83.429,83.388,10.7972]
[1771798127124,3.98197514,83.429,83.38,2.57568327]
[1771798127526,3.98197514,83.429,83.381,2.32637518]
[1771798128728,3.98197514,83.429,83.383,2.32637518]
[1771798129928,3.98197514,83.429,83.384,13.11687718]
[1771798131030,3.98197514,83.429,83.388,10.7972]
[1771798133330,3.98197514,83.429,83.396,10.7961]
[1771798133535,3.98197514,83.429,83.397,2.32190588]
[1771798151144,3.98197514,83.429,83.381,2.35391524]
[1771798152645,3.98197514,83.429,83.382,2.35365288]
[1771798159743,3.76294486,83.427,83.382,2.35365288]
[1771798161645,10.7926,83.424,83.381,455.81467823]
[1771798161846,3.76294486,83.419,83.381,455.81467823]
[1771798163553,3.76294486,83.409,83.381,455.81467823]
[1771798171456,3.76294486,83.406,83.381,455.81467823]
[1771798190169,3.76294486,83.406,83.371,2.32101684]
[1771798190170,10.7957,83.4,83.371,2.32101684]
[1771798190364,10.7957,83.4,83.36,232.56668145]
[1771798197074,4.04311497,83.39,83.36,127.9981801]
[1771798197276,2.57575124,83.38,83.345,11.60311007]
[1771798197482,2.57575124,83.35,83.3,2.57575124]
[1771798197679,10.8027,83.346,83.3,2.57575124]
[1771798197978,2.57575124,83.37,83.32,2.57575124]
[1771798198182,10.8,83.366,83.32,2.57575124]
[1771798198473,14.95888874,83.397,83.283,466.22403668]
[1771798198474,2.57575124,83.39,83.34,2.57575124]
[1771798198678,9.07610476,83.389,83.34,2.57575124]
[1771798198878,9.07610476,83.388,83.34,2.57575124]
[1771798199079,9.07610476,83.387,83.34,2.57575124]
[1771798199280,9.07610476,83.386,83.34,2.5786752]
[1771798199583,10.8,83.366,83.33,2.5786752]
[1771798199783,10.8,83.366,83.32,2.5786752]
[1771798200980,10.8,83.366,83.33,2.5786752]
[1771798201582,10.8,83.366,83.331,9.13117762]
[1771798203291,10.7984,83.379,83.331,9.13117762]
[1771798203486,2.5786752,83.38,83.331,9.13117762]
[1771798204876,10.7992,83.373,83.331,9.13117762]
[1771798210885,2.5786752,83.37,83.331,9.13117762]
[1771798211085,2.5786752,83.36,83.311,9.15357292]
[1771798213995,324.98214207,83.364,83.311,9.15357292]
[1771798214296,10.8008,83.36,83.311,9.15357292]
[1771798215494,10.8008,83.36,83.321,9.17173051]
[1771798218497,13.3794752,83.36,83.321,9.17173051]
[1771798220294,10.8021,83.351,83.321,9.17173051]
[1771798227808,10.8008,83.36,83.321,9.17173051]
[1771798238327,13.3794752,83.36,83.321,9.17173051]
[1771798242325,10.8016,83.355,83.321,9.17173051]
[1771798251933,10.8,83.367,83.321,9.17173051]
[1771798252140,9.46419069,83.366,83.331,9.19001875]
[1771798252338,325.52491008,83.38,83.331,9.19001875]
[1771798252540,9.46239687,83.379,83.331,9.19001875]
[1771798252738,9.46239687,83.378,83.331,9.19001875]
[1771798252939,9.46239687,83.377,83.331,9.19001875]
[1771798253234,9.46239687,83.376,83.331,9.19001875]
[1771798253439,9.46239687,83.375,83.331,9.19001875]
[1771798253739,2.5786752,83.37,83.331,9.19001875]
[1771798254037,9.46239687,83.369,83.331,9.19001875]
[1771798254232,9.46239687,83.368,83.331,9.19001875]
[1771798254441,9.46239687,83.367,83.331,9.19001875]
[1771798254740,2.5786752,83.37,83.331,9.19001875]
[1771798254940,9.46075979,83.369,83.331,9.19001875]
[1771798255240,9.46075979,83.368,83.331,9.19001875]
[1771798255442,9.46075979,83.367,83.331,9.19001875]
[1771798255741,2.5786752,83.37,83.331,9.19001875]
[1771798255936,9.46006113,83.369,83.331,9.19001875]
[1771798256138,9.46006113,83.368,83.331,9.19001875]
[1771798256345,2.5786752,83.37,83.331,9.19001875]
[1771798256637,9.45920465,83.369,83.331,9.19001875]
[1771798256943,2.5786752,83.37,83.331,9.19001875]
[1771798259245,2.57970836,83.37,83.331,9.19001875]
[1771798273257,2.57970836,83.36,83.313,9.21811642]
[1771798273457,9.26418017,83.359,83.313,9.21811642]
[1771798273658,2.57970836,83.36,83.313,9.21811642]
[1771798273659,9.26418017,83.358,83.313,9.21811642]
[1771798273858,9.26418017,83.357,83.313,9.21811642]
[1771798274152,9.26418017,83.356,83.313,9.21811642]
[1771798274361,2.57970836,83.35,83.313,9.21811642]
[1771798275755,11.21916655,83.374,83.319,9.16467644]
[1771798275962,9.26368176,83.373,83.321,9.16467644]
[1771798276161,9.26368176,83.372,83.321,9.16467644]
[1771798276461,10.7989,83.375,83.321,9.16467644]
[1771798276660,9.26219934,83.374,83.323,9.16466289]
[1771798276862,9.26219934,83.373,83.323,9.16466289]
[1771798277062,9.26219934,83.372,83.323,9.16466289]
[1771798277367,10.7989,83.375,83.323,9.16466289]
[1771798277664,9.26214801,83.374,83.323,9.16466289]
[1771798277864,9.26214801,83.373,83.323,9.16466289]
[1771798278064,9.26214801,83.372,83.323,9.16466289]
[1771798278267,10.7989,83.375,83.323,9.16466289]
[1771798278466,9.26212725,83.374,83.323,9.16466289]
[1771798278664,9.26212725,83.373,83.323,9.16466289]
[1771798278865,9.26212725,83.372,83.323,9.16466289]
[1771798279060,10.7989,83.375,83.323,9.16466289]
[1771798279257,9.26212725,83.374,83.323,9.16466289]
[1771798279457,9.26212725,83.373,83.323,9.16466289]
[1771798279661,9.26212725,83.372,83.323,9.16466289]
[1771798279865,10.7989,83.375,83.323,9.16466289]
[1771798280067,2.57970836,83.37,83.323,9.16466289]
[1771798286470,10.7989,83.375,83.323,9.16466289]
[1771798286670,9.26293044,83.374,83.331,9.26185772]
[1771798286871,2.57970836,83.38,83.331,9.26185772]
[1771798287070,9.26168165,83.379,83.331,9.26185772]
[1771798287274,9.26168165,83.378,83.333,9.26180206]
[1771798287472,9.26168165,83.377,83.333,9.26180206]
[1771798287770,9.26168165,83.376,83.333,9.26180206]
[1771798287971,9.26168165,83.375,83.333,9.26180206]
[1771798288163,9.26168165,83.374,83.333,9.26180206]
[1771798288364,2.57970836,83.38,83.333,9.26180206]
[1771798288571,9.26215209,83.379,83.335,9.26180206]
[1771798288772,9.26215209,83.378,83.335,9.26180206]
[1771798289072,9.26215209,83.377,83.335,9.26180206]
[1771798289272,9.26215209,83.376,83.337,9.26556041]
[1771798289471,9.26215209,83.375,83.337,9.26556041]
[1771798289666,9.26215209,83.374,83.337,9.26556041]
[1771798289866,2.57970836,83.38,83.337,9.26556041]
[1771798290066,9.2624393,83.379,83.337,9.26556041]
[1771798290270,9.2624393,83.378,83.337,9.26556041]
[1771798290469,9.2624393,83.377,83.337,9.26556041]
[1771798290667,9.2624393,83.376,83.337,9.26556041]
[1771798290876,9.2624393,83.375,83.337,9.26556041]
[1771798291076,9.2624393,83.374,83.337,9.26556041]
[1771798291375,2.57970836,83.38,83.337,9.26556041]
[1771798291570,9.2631211,83.379,83.337,9.26556041]
[1771798291772,9.2631211,83.378,83.337,9.26556041]
[1771798292073,9.2631211,83.377,83.337,9.26556041]
[1771798292273,9.2631211,83.376,83.337,9.26556041]
[1771798292573,9.2631211,83.375,83.339,9.26561949]
[1771798292772,9.2631211,83.374,83.339,9.26561949]
[1771798292970,9.2631211,83.373,83.339,9.26561949]
[1771798293171,315.00948095,83.378,83.339,9.26561949]
[1771798293369,9.2636565,83.377,83.339,9.26561949]
[1771798293578,9.2636565,83.376,83.339,9.26561949]
[1771798293876,9.2636565,83.375,83.339,9.26561949]
[1771798294076,9.2636565,83.374,83.339,9.26561949]
[1771798294275,9.2636565,83.373,83.339,9.26561949]
[1771798294475,9.26446343,83.372,83.339,9.26561949]
[1771798294675,9.26446343,83.371,83.339,9.26561949]
[1771798294870,315.00948095,83.378,83.339,9.26561949]
[1771798295081,9.26446343,83.377,83.339,9.26561949]
[1771798295277,9.26446343,83.376,83.339,9.26561949]
[1771798295477,9.26446343,83.375,83.339,9.26561949]
[1771798295677,9.26501657,83.374,83.339,9.26561949]
[1771798295877,9.26501657,83.373,83.339,9.26561949]
[1771798296078,9.26501657,83.372,83.339,9.26561949]
[1771798296278,9.26501657,83.371,83.339,9.26561949]
[1771798296479,315.00948095,83.378,83.339,9.26561949]
[1771798296679,9.26563253,83.377,83.339,9.26561949]
[1771798296979,9.26563253,83.376,83.339,9.26561949]
[1771798297175,9.26563253,83.375,83.339,9.26561949]
[1771798297379,9.26563253,83.374,83.339,9.26561949]
[1771798297580,9.26563253,83.373,83.339,9.26561949]
[1771798297780,9.26563253,83.372,83.339,9.26561949]
[1771798298079,9.26563253,83.371,83.339,9.26561949]
[1771798298380,315.00948095,83.378,83.339,9.26561949]
[1771798298580,9.26562825,83.377,83.339,9.26561949]
[1771798298782,9.26562825,83.376,83.339,9.26561949]
[1771798299083,9.26562825,83.375,83.339,9.26561949]
[1771798299281,9.26562825,83.374,83.339,9.26561949]
[1771798299578,9.26562825,83.373,83.339,9.26561949]
[1771798299874,9.26562825,83.372,83.339,9.26561949]
[1771798300080,9.26562825,83.371,83.339,9.26561949]
[1771798300384,10.7987,83.377,83.339,9.26561949]
[1771798300586,9.2656201,83.376,83.339,9.26561949]
[1771798300784,9.2656201,83.375,83.339,9.26561949]
[1771798300984,9.2656201,83.374,83.339,9.26561949]
[1771798301185,9.2656201,83.373,83.339,9.26561949]
[1771798301385,9.2656201,83.372,83.339,9.26561949]
[1771798301685,9.2656201,83.371,83.339,9.26561949]
[1771798301886,10.7987,83.377,83.339,9.26561949]
[1771798302086,10.7989,83.375,83.339,9.26561949]
[1771798302478,315.00948095,83.378,83.34,2.57970836]
[1771798302680,2.57970836,83.39,83.341,9.26708631]
[1771798302883,9.26389777,83.389,83.341,9.26708631]
[1771798303083,9.26389777,83.388,83.341,9.26708631]
[1771798303284,9.26389777,83.387,83.341,9.26708631]
[1771798303489,2.57970836,83.38,83.341,9.26708631]
[1771798309493,2.57970836,83.38,83.345,9.24016479]
[1771798309694,2.57970836,83.39,83.345,9.24016479]
[1771798309896,9.25405898,83.389,83.345,9.24016479]
[1771798310092,9.25405898,83.388,83.345,9.24016479]
[1771798310392,2.57970836,83.39,83.345,9.24016479]
[1771798310694,9.25317445,83.389,83.347,9.24016479]
[1771798310894,2.57970836,83.39,83.347,9.24016479]
[1771798311093,9.25317445,83.389,83.347,9.24016479]
[1771798311290,2.57970836,83.39,83.347,9.24016479]
[1771798311593,9.25238458,83.389,83.347,9.24016479]
[1771798311787,2.57970836,83.39,83.347,9.24016479]
[1771798311987,9.25238458,83.389,83.347,9.24016479]
[1771798312188,2.57970836,83.39,83.347,9.24016479]
[1771798312495,9.25166802,83.389,83.347,9.24016479]
[1771798312792,2.57970836,83.39,83.347,9.24016479]
[1771798312987,9.25166737,83.389,83.347,9.24016479]
[1771798313185,2.57970836,83.39,83.347,9.24016479]
[1771798313385,9.25101556,83.389,83.347,9.24016479]
[1771798313583,2.57970836,83.39,83.347,9.24016479]
[1771798313795,9.25101556,83.389,83.347,9.24016479]
[1771798313991,2.57970836,83.39,83.347,9.24016479]
[1771798320296,9.23023516,83.389,83.347,9.24016479]
[1771798320496,2.57970836,83.39,83.347,9.24016479]
[1771798320696,9.23023516,83.389,83.347,9.24016479]
[1771798320896,2.57970836,83.39,83.347,9.24016479]
[1771798321098,9.23023646,83.389,83.347,9.24016479]
[1771798321296,10.7971,83.389,83.347,9.24016479]
[1771798322199,2.57862379,83.39,83.347,9.24016479]
[1771798322397,9.22986197,83.389,83.347,9.24016479]
[1771798322700,2.57862379,83.39,83.347,9.24016479]
[1771798322900,9.22986197,83.389,83.347,9.24016479]
[1771798323100,2.57862379,83.39,83.347,9.24016479]
[1771798323301,9.22979877,83.389,83.347,9.24016479]
[1771798323502,2.57862379,83.39,83.347,9.24016479]
[1771798323701,20.02694924,83.389,83.347,9.24016479]
[1771798324000,10.7972,83.389,83.347,9.24016479]
[1771798334608,10.7976,83.385,83.347,9.24016479]
[1771798341919,10.7989,83.376,83.32,467.75800922]
[1771798342215,10.7989,83.376,83.33,2.57862379]
[1771798344020,10.7989,83.376,83.331,4.56683538]
[1771798349225,2.57862379,83.38,83.331,4.56683538]
[1771798349426,9.23832734,83.379,83.331,4.56683538]
[1771798349626,9.23832734,83.378,83.331,4.56683538]
[1771798349827,2.57862379,83.38,83.331,4.56683538]
[1771798350027,9.23832734,83.379,83.331,4.56683538]
[1771798350229,9.23832734,83.378,83.331,4.56683538]
[1771798350528,2.57862379,83.38,83.331,4.56683538]
[1771798350731,9.23805007,83.379,83.331,4.56683538]
[1771798350928,9.23805007,83.378,83.331,4.56683538]
[1771798351129,2.57862379,83.38,83.331,4.56683538]
[1771798351326,9.23780124,83.379,83.331,4.56683538]
[1771798351531,9.23780124,83.378,83.331,4.56683538]
[1771798351732,2.57862379,83.38,83.331,4.56683538]
[1771798351928,9.23780124,83.379,83.331,4.56683538]
[1771798352131,9.23780124,83.378,83.331,4.56683538]
[1771798352435,2.57862379,83.38,83.331,4.56683538]
[1771798352730,9.23757825,83.379,83.331,4.56683538]
[1771798352927,9.23757825,83.378,83.331,4.56683538]
[1771798353129,2.57862379,83.38,83.331,4.56683538]
[1771798353332,9.23737645,83.379,83.331,4.56683538]
[1771798353631,9.23737645,83.378,83.331,4.56683538]
[1771798353832,2.57862379,83.38,83.331,4.56683538]
[1771798354132,9.23737645,83.379,83.331,4.56683538]
[1771798354431,2.57862379,83.38,83.331,4.56683538]
[1771798354632,9.23719823,83.379,83.331,4.56683538]
[1771798354831,2.57862379,83.38,83.331,4.56683538]
[1771798355032,9.23719888,83.379,83.331,4.56683538]
[1771798355331,2.57862379,83.38,83.331,4.56683538]
[1771798355631,2.57862379,83.34,83.299,45.02763689]
[1771798356434,2.57862379,83.33,83.29,45.02763689]
[1771798356832,2.57862379,83.32,83.29,45.02763689]
[1771798358627,2.57862379,83.32,83.272,44.81716479]
[1771798358828,2.57862379,83.32,83.253,465.09769537]
[1771798358829,2.57862379,83.3,83.26,44.81716479]
[1771798360531,2.57862379,83.29,83.253,465.09769537]
[1771798360836,10.8075,83.309,83.254,44.92673825]
[1771798360837,2.57862379,83.3,83.254,44.92673825]
[1771798362136,2.57862379,83.29,83.254,44.92673825]
[1771798363035,2.57862379,83.3,83.254,44.92673825]
[1771798364033,10.8075,83.309,83.271,44.90514329]
[1771798366928,10.8075,83.309,83.26,2.57862379]
[1771798369033,10.8075,83.309,83.261,35.32445299]
[1771798371940,2.57862379,83.31,83.261,35.32445299]
[1771798372137,2.57862379,83.32,83.271,35.3308992]
[1771798372334,2.57862379,83.33,83.271,35.3308992]
[1771798372539,10.8072,83.311,83.271,35.3308992]
[1771798380352,10.8085,83.302,83.271,17.2445992]
[1771798381644,10.8085,83.302,83.28,2.57862379]
[1771798382555,10.8085,83.302,83.279,2.268e-05]
[1771798383047,10.8085,83.302,83.26,2.57862379]
[1771798383250,10.8085,83.302,83.27,2.58323659]
[1771798383943,10.8085,83.302,83.28,2.58323659]
[1771798385353,10.8085,83.302,83.268,13.13141889]
[1771798385543,10.8085,83.302,83.253,465.09769537]
[1771798385544,10.8072,83.311,83.28,2.58323659]
[1771798385747,2.58323659,83.33,83.27,15.71465548]
[1771798386550,2.58323659,83.31,83.182,175.0]
[1771798386758,2.58323659,83.29,83.168,21.6514]
[1771798387048,2.58323659,83.29,83.24,2.58323659]
[1771798387455,2.58323659,83.3,83.25,2.58323659]
[1771798388653,10.8101,83.289,83.25,2.58323659]
[1771798389051,2.58323659,83.3,83.25,2.58323659]
[1771798390453,2.58323659,83.29,83.24,2.58323659]
[1771798391154,10.8121,83.274,83.234,6.56323639]
[1771798395253,10.8132,83.265,83.23,6.53238434]
[1771798395458,2.58323659,83.27,83.22,9.11562093]
[1771798395660,11.16757584,83.303,83.176,7.82400263]
[1771798395952,11.16757584,83.303,83.079,168.5809]
[1771798395953,10.819,83.22,83.18,2.58323659]
[1771798396155,13.40223659,83.22,83.17,10.40723922]
[1771798396352,10.819,83.22,83.18,2.58323659]
[1771798397151,10.819,83.22,83.171,7.82392247]
[1771798398363,10.8202,83.211,83.171,7.82392247]
[1771798404358,10.8202,83.211,83.181,8.14682698]
[1771798406870,463.98212471,83.246,83.191,8.13111955]
[1771798407070,463.98212471,83.246,83.201,8.13111955]
[1771798407764,2.58323659,83.27,83.22,2.58323659]
[1771798407970,2.58323659,83.29,83.23,9.88e-06]
[1771798408273,2.58323659,83.28,83.22,2.58323659]
[1771798408671,2.58323659,83.27,83.22,2.58323659]
[1771798409873,10.8143,83.256,83.21,2.58323659]
[1771798410071,10.8143,83.256,83.211,4.04635886]
[1771798410271,9.09365989,83.302,83.211,4.04635886]
[1771798410471,2.58323659,83.26,83.211,4.04635886]
[1771798411173,0.04422574,83.259,83.211,4.04635886]
[1771798412676,10.8144,83.255,83.211,4.04635886]
[1771798413269,0.04422574,83.259,83.211,4.04635886]
[1771798425292,10.8117,83.276,83.231,3.99159913]
[1771798428398,1.09906044,83.284,83.234,4.0005403]
[1771798428597,2.58323659,83.28,83.234,4.0005403]
[1771798429499,1.09906044,83.284,83.236,3.99716362]
[1771798430500,2.58323659,83.29,83.242,3.99550576]
[1771798431802,10.8097,83.292,83.242,3.99550576]
[1771798432005,2.58323659,83.29,83.242,3.99550576]
[1771798434499,1.78503873,83.297,83.243,10.816]
[1771798434806,2.53787377,83.309,83.251,3.94671018]
[1771798435104,2.53787377,83.309,83.261,3.94671018]
[1771798436399,14.98445463,83.35,83.26,2.58323659]
[1771798436400,5.25590056,83.32,83.263,3.94259418]
[1771798436796,2.79762046,83.319,83.263,3.94259418]
[1771798437199,2.79762046,83.319,83.271,3.95430722]
[1771798450915,4.69657093,83.317,83.271,3.95430722]
[1771798451610,4.81449699,83.309,83.271,3.95430722]
[1771798472739,6.29518252,83.319,83.273,6.01480084]
[1771798473440,6.29518252,83.33,83.285,6.01480084]
[1771798475835,6.29518252,83.329,83.285,6.01480084]
[1771798493562,6.29518252,83.329,83.294,6.79083789]
[1771798497566,7.00379337,83.309,83.267,6.79083789]
[1771798499664,2.58290508,83.3,83.267,6.79083789]
[1771798500264,9.58669845,83.3,83.267,6.79083789]
[1771798502262,2.58290508,83.29,83.267,1.54385473]
[1771798502463,2.58290508,83.29,83.257,10.8141]
[1771798502772,7.00379337,83.289,83.257,10.8141]
[1771798503666,7.00379337,83.299,83.257,10.8141]
[1771798504270,7.00379337,83.299,83.258,6.79083789]
[1771798505870,7.00379337,83.325,83.281,6.79083789]
[1771798507167,7.00379337,83.335,83.291,6.79083789]
[1771798507373,7.00379337,83.335,83.293,6.79083789]
[1771798507974,463.94877478,83.331,83.293,6.79083789]
[1771798508674,463.94877478,83.331,83.296,8.07211038]
[1771798509176,463.94877478,83.331,83.297,10.809]